bitfinex-derivatives/quotes_ETHF0:USTF0_20250112
["timestamp","ask_amount","ask_price","bid_price","bid_amount"]
[1736666426574,5.53778,3271.3,3271.2,0.21408]
[1736666427478,5.3237,3271.3,3271.2,0.21408]
[1736666429672,4.8478,3271.3,3271.2,3.27248001]
[1736666430372,5.06188,3271.3,3271.2,3.27248001]
[1736666430573,4.8478,3271.3,3271.2,3.27248001]
[1736666431172,1.64,3271.3,3271.2,3.27248001]
[1736666434478,0.457,3271.3,3271.2,3.27248001]
[1736666434973,1.183,3271.5,3271.4,0.21407]
[1736666435683,1.183,3271.5,3271.4,0.70377]
[1736666435874,3.06957,3271.7,3271.6,0.21406]
[1736666436170,4.25257,3271.7,3271.6,0.21406]
[1736666437979,2.1148,3271.7,3271.6,0.21406]
[1736666439373,3.2078,3271.8,3271.6,3.05840001]
[1736666439580,1.183,3272.0,3271.6,3.05840001]
[1736666439779,1.183,3272.0,3271.9,0.21404]
[1736666440183,1.183,3272.0,3271.6,3.05840001]
[1736666440389,0.4683,3271.9,3271.8,0.21404]
[1736666441782,0.21405,3271.8,3271.6,0.21405]
[1736666442092,0.21405,3271.8,3271.4,0.4897]
[1736666442093,0.4584,3271.8,3271.4,0.4897]
[1736666442386,2.35183,3271.6,3271.4,0.70376]
[1736666442587,0.4843,3271.5,3271.4,0.4897]
[1736666442789,3.6921,3271.5,3270.7,3.2078]
[1736666443086,3.6921,3271.5,3271.0,0.21409]
[1736666443087,2.35186,3271.2,3271.0,0.21409]
[1736666443386,1.1397,3271.1,3271.0,0.21409]
[1736666443787,0.6405,3271.1,3271.0,0.21409]
[1736666444085,0.1405,3271.1,3271.0,0.2141]
[1736666445382,0.35459,3271.1,3271.0,0.2141]
[1736666445583,0.1405,3271.1,3271.0,0.2141]
[1736666445985,0.1405,3271.1,3270.5,0.9504]
[1736666445986,0.35459,3271.1,3270.5,0.9504]
[1736666446189,0.4704,3271.0,3270.5,0.9504]
[1736666446378,0.4704,3271.0,3270.9,0.2141]
[1736666448384,0.6845,3271.0,3270.9,0.2141]
[1736666448590,0.4704,3271.0,3270.9,0.2141]
[1736666450986,0.1405,3271.1,3271.0,0.2141]
[1736666451193,0.1405,3271.1,3271.0,0.6819]
[1736666451394,0.1405,3271.1,3271.0,1.1556]
[1736666452185,0.1405,3271.1,3271.0,1.634]
[1736666453190,0.1405,3271.1,3271.0,1.63295283]
[1736666458389,1.185,3271.1,3271.0,1.634]
[1736666459689,0.4911,3271.4,3271.0,1.634]
[1736666459890,0.4911,3271.4,3271.3,0.21408]
[1736666460194,1.6761,3271.4,3271.3,0.21408]
[1736666460392,1.6761,3271.4,3271.3,3.27248001]
[1736666462195,3.32277,3271.5,3271.4,0.21407]
[1736666462698,3.32277,3271.5,3271.4,0.68177]
[1736666463796,3.32277,3271.5,3271.4,0.21407]
[1736666463995,3.53684,3271.5,3271.3,0.21407]
[1736666464402,0.21407,3271.4,3271.3,0.21407]
[1736666464698,3.53684,3271.5,3271.3,0.21407]
[1736666465395,0.21407,3271.4,3271.3,0.21407]
[1736666465798,0.21408,3271.3,3271.1,0.21409]
[1736666466097,0.21408,3271.2,3271.1,0.21409]
[1736666466295,0.4663,3271.2,3271.1,0.21409]
[1736666467498,2.60407,3271.2,3270.9,0.465]
[1736666467699,0.459,3271.1,3271.0,0.21409]
[1736666468692,0.67309,3271.1,3271.0,0.21409]
[1736666469093,0.459,3271.1,3271.0,0.21409]
[1736666474002,0.67309,3271.1,3270.9,0.2141]
[1736666475004,0.67309,3271.1,3270.7,0.8948]
[1736666475205,0.67309,3271.1,3271.0,0.2141]
[1736666475503,1.68395884,3271.1,3271.0,0.2141]
[1736666477502,1.46986884,3271.1,3271.0,0.2141]
[1736666478704,1.68395884,3271.1,3270.9,0.2141]
[1736666478911,1.01086884,3271.0,3270.9,0.2141]
[1736666482808,2.19286884,3271.0,3270.9,0.2141]
[1736666486002,2.19286884,3271.0,3270.7,0.8948]
[1736666486203,1.01086884,3270.8,3270.7,0.8948]
[1736666486410,1.22497884,3270.8,3270.7,0.8948]
[1736666487405,1.16717884,3270.8,3270.7,0.8948]
[1736666489417,1.16717884,3270.8,3270.7,1.10892]
[1736666489715,0.95306884,3270.8,3270.7,1.10892]
[1736666490316,0.95306884,3270.8,3270.7,4.16732001]
[1736666492020,1.16717884,3270.8,3270.7,4.16732001]
[1736666492225,1.16717884,3270.8,3270.7,3.95320001]
[1736666493618,0.95306884,3270.8,3270.4,3.2078]
[1736666493925,0.21414,3270.4,3270.3,0.4467]
[1736666494118,1.22500884,3270.4,3270.3,0.4467]
[1736666494321,1.65960884,3270.4,3270.3,0.4467]
[1736666494630,0.21416,3270.0,3269.9,3.2078]
[1736666494925,0.21417,3269.8,3269.7,0.9325]
[1736666495123,1.01086884,3269.8,3269.7,1.14668]
[1736666495320,0.4557,3269.9,3269.7,1.14668]
[1736666495524,0.4557,3269.9,3269.8,0.21417]
[1736666496024,0.4557,3269.9,3269.7,1.14668]
[1736666496426,0.4557,3269.9,3269.7,0.9325]
[1736666496626,0.4557,3269.9,3269.8,0.21417]
[1736666497723,0.4557,3269.9,3269.7,0.9325]
[1736666498026,0.66987,3269.9,3269.7,1.14667]
[1736666500024,0.66987,3269.9,3269.7,0.9325]
[1736666500025,0.4557,3269.9,3269.7,0.9325]
[1736666500230,2.35120267,3270.1,3269.9,0.21416]
[1736666500428,1.183,3270.0,3269.9,0.21416]
[1736666505831,1.183,3270.0,3269.9,3.27256001]
[1736666510529,2.13704267,3270.1,3269.9,3.05840001]
[1736666510725,2.13704267,3270.1,3270.0,0.21416]
[1736666510925,3.32204267,3270.1,3270.0,0.21416]
[1736666512642,1.185,3270.1,3270.0,0.21416]
[1736666515442,1.01146842,3270.1,3270.0,0.21416]
[1736666520342,1.185,3270.4,3270.3,0.21414]
[1736666520532,2.19646842,3270.4,3270.3,0.21414]
[1736666520738,2.19646842,3270.4,3270.3,3.27254001]
[1736666521140,1.01146842,3270.4,3270.3,3.27254001]
[1736666529650,1.01146842,3270.7,3270.3,3.05840001]
[1736666529848,3.2078,3270.8,3270.5,0.74946]
[1736666529849,1.01146842,3270.8,3270.5,0.74946]
[1736666530048,1.01146842,3270.8,3270.7,0.21412]
[1736666530445,1.01146842,3271.0,3270.9,0.2141]
[1736666530953,1.01146842,3271.0,3270.9,3.27250001]
[1736666532254,1.01146842,3271.2,3270.9,3.05840001]
[1736666532554,1.01146842,3271.2,3271.1,0.21409]
[1736666533057,1.01146842,3271.2,3271.1,0.68629]
[1736666533357,0.21408,3271.3,3271.2,0.21408]
[1736666535555,3.97045801,3271.4,3271.2,0.21408]
[1736666535756,3.97045801,3271.4,3271.3,3.05840001]
[1736666541858,3.75638801,3271.4,3271.3,3.27248001]
[1736666542055,1.6212,3271.4,3271.3,3.27248001]
[1736666544152,2.0888,3271.4,3271.3,3.27248001]
[1736666545952,5.34298801,3271.7,3271.6,0.21406]
[1736666546257,13.17548356,3272.4,3271.7,0.53513]
[1736666546464,1.6284,3272.3,3272.2,0.21402]
[1736666547463,1.6284,3272.3,3272.2,3.27242001]
[1736666548854,1.6284,3272.3,3271.8,1.87402]
[1736666548855,3.97759801,3272.3,3272.1,0.21402]
[1736666549158,3.97759801,3272.3,3272.2,3.05840001]
[1736666549358,3.76358801,3272.3,3272.2,3.27242001]
[1736666549560,3.76358801,3272.3,3272.1,0.21402]
[1736666550465,3.97759801,3272.3,3272.1,0.21402]
[1736666550959,3.76358801,3272.3,3272.1,0.21402]
[1736666551165,0.4458,3272.2,3272.1,0.21402]
[1736666551771,0.21404,3271.9,3271.7,3.42185]
[1736666552067,0.4458,3271.8,3271.7,0.21405]
[1736666553461,2.13518801,3272.0,3271.9,0.21404]
[1736666553661,2.58158801,3272.0,3271.9,0.21404]
[1736666554365,3.76358801,3272.3,3271.4,0.4678]
[1736666554562,2.58258801,3272.3,3272.2,0.21402]
[1736666554766,3.76358801,3272.3,3272.2,3.27242001]
[1736666556168,1.6284,3272.3,3272.2,3.27242001]
[1736666556664,5.34298801,3272.6,3272.5,0.214]
[1736666556869,6.52398801,3272.6,3272.5,0.214]
[1736666557268,0.214,3272.5,3272.3,0.68611]
[1736666557569,0.6795,3272.5,3272.3,0.68611]
[1736666557760,0.4655,3272.5,3272.3,0.4721]
[1736666557962,0.4655,3272.5,3272.4,0.21401]
[1736666558970,0.21401,3272.3,3272.1,0.21402]
[1736666559171,0.21401,3272.4,3272.0,0.4434]
[1736666559370,0.21401,3272.4,3272.1,0.21402]
[1736666560165,0.21401,3272.4,3272.2,0.21402]
[1736666563970,4.1257,3272.5,3272.0,0.4434]
[1736666564165,0.21401,3272.4,3272.2,0.21402]
[1736666565264,1.01017205,3272.3,3272.2,0.21402]
[1736666566164,1.01017205,3272.3,3272.0,0.4434]
[1736666566379,1.22418205,3272.3,3272.1,0.21402]
[1736666567973,1.22418205,3272.3,3272.0,0.4434]
[1736666568169,1.22418205,3272.3,3272.2,0.21402]
[1736666568378,1.01017205,3272.3,3272.2,0.21402]
[1736666569476,2.19417205,3272.3,3272.2,0.21402]
[1736666571379,1.01017205,3272.3,3272.2,0.21402]
[1736666571578,4.21797205,3272.5,3272.4,0.21401]
[1736666571774,5.40197205,3272.5,3272.4,0.21401]
[1736666575086,2.19417205,3272.5,3272.4,0.21401]
[1736666579676,2.19417205,3272.5,3272.1,3.05840001]
[1736666579880,1.01017205,3272.2,3272.1,0.21402]
[1736666581581,1.01017205,3272.2,3272.1,3.27242001]
[1736666585079,1.01017205,3272.4,3272.1,3.05840001]
[1736666585281,1.01017205,3272.4,3272.3,0.21401]
[1736666585780,1.184,3272.5,3272.1,3.05840001]
[1736666585976,3.2078,3272.6,3272.3,1.01017205]
[1736666586291,3.2078,3272.6,3272.5,0.214]
[1736666586485,1.01017205,3272.9,3272.8,0.21398]
[1736666587383,3.51547,3273.0,3272.6,3.05840001]
[1736666587384,3.3015,3273.0,3272.6,3.05840001]
[1736666587581,3.3015,3273.0,3272.9,0.21397]
[1736666588586,3.3015,3273.0,3272.9,3.27237001]
[1736666590286,1.671,3273.0,3272.9,3.27237001]
[1736666592990,1.671,3273.0,3272.9,3.05840001]
[1736666593189,1.88497,3273.0,3272.9,3.27237001]
[1736666593385,1.671,3273.0,3272.9,3.05840001]
[1736666593591,2.1438,3273.0,3272.9,3.27237001]
[1736666596487,2.35777,3273.0,3272.9,3.05840001]
[1736666596696,2.1438,3273.0,3272.9,3.27237001]
[1736666596991,2.35777,3273.0,3272.9,0.21397]
[1736666597189,2.35777,3273.0,3272.5,0.4796]
[1736666597491,2.1438,3273.0,3272.9,0.21397]
[1736666598081,2.35777,3273.0,3272.8,0.21398]
[1736666598288,2.1438,3273.0,3272.9,0.21397]
[1736666598693,2.1438,3273.0,3272.5,0.4796]
[1736666598891,0.21401,3272.4,3272.2,0.21402]
[1736666599086,1.6755,3272.3,3272.2,0.21402]
[1736666599289,2.1242,3272.3,3272.2,0.21402]
[1736666606694,1.6755,3272.3,3272.2,0.21402]
[1736666607402,2.68551384,3272.3,3272.2,0.21402]
[1736666607592,1.183,3272.3,3272.2,0.21402]
[1736666608202,1.183,3272.3,3272.2,3.27242001]
[1736666608998,1.01001384,3272.5,3272.4,0.21401]
[1736666609199,1.183,3272.6,3272.2,3.05840001]
[1736666609395,1.01001384,3272.7,3272.6,0.21399]
[1736666609604,2.19301384,3272.7,3272.6,0.21399]
[1736666609800,2.19301384,3272.7,3272.6,3.27239001]
[1736666611307,1.183,3272.7,3272.6,3.27239001]
[1736666619612,1.183,3272.8,3272.6,3.05840001]
[1736666619912,1.183,3272.8,3272.7,0.21399]
[1736666620609,3.2078,3272.9,3272.8,0.21398]
[1736666620809,0.4491,3273.0,3272.9,0.21397]
[1736666621118,1.6321,3273.0,3272.6,3.05840001]
[1736666621309,1.6321,3273.0,3272.9,0.21397]
[1736666622110,0.4491,3273.0,3272.9,0.21397]
[1736666622310,1.6321,3273.0,3272.9,3.27237001]
[1736666626018,1.183,3273.0,3272.9,3.27237001]
[1736666628317,0.4923,3273.2,3273.1,0.21396]
[1736666628519,1.6753,3273.2,3273.1,0.21396]
[1736666631416,2.68489551,3273.2,3273.1,0.21396]
[1736666632218,1.6753,3273.2,3273.1,0.21396]
[1736666632416,2.68489551,3273.2,3273.1,0.21396]
[1736666635515,2.68489551,3273.2,3273.0,0.4656]
[1736666635715,3.6771,3273.1,3273.0,0.67957]
[1736666636219,3.6771,3273.1,3273.0,3.73797001]
[1736666636423,2.68489551,3273.2,3273.1,0.21396]
[1736666647518,2.19259551,3273.2,3273.1,0.21396]
[1736666649229,4.21739551,3273.4,3273.0,3.52400001]
[1736666649415,4.21739551,3273.4,3273.3,0.21395]
[1736666649616,5.40039551,3273.4,3273.3,0.21395]
[1736666652928,2.19259551,3273.4,3273.3,0.21395]
[1736666655021,3.84036022,3273.6,3273.3,1.00959551]
[1736666655226,2.19259551,3273.8,3273.7,0.21392]
[1736666655819,2.19259551,3273.8,3273.7,3.27232001]
[1736666657424,2.40650551,3273.8,3273.7,3.05840001]
[1736666657726,2.89720551,3273.8,3273.7,3.05840001]
[1736666658524,0.21393,3273.6,3273.4,0.21394]
[1736666658726,1.48199551,3273.5,3273.4,0.21394]
[1736666663929,1.48199551,3273.5,3273.4,3.27234001]
[1736666665523,0.4724,3273.5,3273.4,3.27234001]
[1736666666133,0.4724,3273.5,3273.1,1.49039551]
[1736666666134,0.68634,3273.5,3273.2,0.21395]
[1736666666330,1.00959551,3273.3,3272.9,0.4783]
[1736666666529,1.00959551,3273.0,3272.9,0.69227]
[1736666670025,1.94859551,3273.2,3273.1,0.21396]
[1736666670828,3.12859551,3273.2,3273.1,0.21396]
[1736666677437,2.64569551,3273.2,3273.1,0.21396]
[1736666677638,2.18959551,3273.2,3273.1,3.27236001]
[1736666678442,1.18,3273.2,3273.1,3.27236001]
[1736666680644,2.18959551,3273.2,3273.1,3.27236001]
[1736666688567,2.18959551,3273.2,3272.9,0.4783]
[1736666688755,1.00959551,3273.0,3272.9,0.69227]
[1736666689466,1.47779551,3273.0,3272.9,0.69227]
[1736666692960,5.39739551,3273.2,3272.9,0.4783]
[1736666693162,5.39739551,3273.2,3273.1,0.21396]
[1736666693964,2.18959551,3273.2,3273.1,0.21396]
[1736666698464,0.4763,3273.3,3273.1,3.05840001]
[1736666698671,0.4763,3273.3,3273.2,0.21395]
[1736666698872,1.6573,3273.3,3273.2,0.21395]
[1736666704868,1.6573,3273.3,3273.2,3.27235001]
[1736666705669,1.181,3273.3,3273.2,3.27235001]
[1736666706768,1.00959551,3273.4,3273.3,0.21395]
[1736666707067,2.19059551,3273.4,3273.3,0.67725]
[1736666707268,2.19059551,3273.4,3273.3,1.16335]
[1736666707768,3.2078,3273.6,3273.5,0.21393]
[1736666707969,4.3878,3273.6,3273.5,0.21393]
[1736666709574,4.8439,3273.6,3273.5,0.21393]
[1736666711577,1.6361,3273.6,3273.5,0.21393]
[1736666713873,2.64569551,3273.6,3273.5,0.21393]
[1736666714479,1.46569551,3273.6,3273.5,0.21393]
[1736666714677,2.64569551,3273.6,3273.5,0.21393]
[1736666715979,2.64569551,3273.6,3273.5,3.27233001]
[1736666722376,2.64569551,3273.6,3273.5,3.05840001]
[1736666722584,2.64569551,3273.6,3273.0,3.2078]
[1736666722779,1.00959551,3273.1,3273.0,3.42177]
[1736666725682,1.47459551,3273.1,3273.0,3.42177]
[1736666728679,1.68855551,3273.1,3272.9,0.9756]
[1736666728883,1.47459551,3273.1,3272.9,1.18957]
[1736666729477,1.47459551,3273.1,3272.9,0.9756]
[1736666729683,1.47459551,3273.1,3273.0,0.21397]
[1736666729881,1.47459551,3273.1,3272.9,1.18957]
[1736666730186,1.68855551,3273.1,3272.9,1.18957]
[1736666730391,0.21397,3273.0,3272.9,0.9756]
[1736666730685,0.18507,3273.0,3272.9,0.9756]
[1736666731186,1.68855551,3273.1,3272.9,1.18957]
[1736666732283,3.2078,3273.4,3273.0,4.06799552]
[1736666732482,5.39839551,3273.4,3273.3,0.21395]
[1736666741993,2.19059551,3273.4,3273.3,0.21395]
[1736666742289,5.39839551,3273.4,3273.3,0.21395]
[1736666745291,2.19059551,3273.4,3273.3,0.21395]
[1736666745493,5.39839551,3273.4,3273.3,0.21395]
[1736666745992,5.39839551,3273.4,3273.3,3.27235001]
[1736666755006,3.2078,3273.4,3273.3,3.27235001]
[1736666755202,2.18959551,3273.6,3273.5,0.21393]
[1736666761615,2.40352551,3273.6,3273.4,1.15484]
[1736666761819,3.6538,3273.5,3273.3,3.05840001]
[1736666762119,1.00959551,3273.4,3273.3,3.05840001]
[1736666762814,1.22353551,3273.4,3273.3,3.05840001]
[1736666763921,1.00959551,3273.4,3272.9,0.4778]
[1736666764122,1.00959551,3273.0,3272.7,3.683]
[1736666764320,1.00959551,3272.8,3272.7,3.89699]
[1736666764527,0.21398,3272.9,3272.7,3.89699]
[1736666764821,1.00959551,3272.8,3272.7,3.89699]
[1736666766626,1.18,3272.9,3272.7,3.683]
[1736666766827,1.18,3272.9,3272.8,4.28197552]
[1736666767917,1.18,3272.9,3272.8,3.27238001]
[1736666773022,1.18,3272.9,3272.8,4.28197552]
[1736666774029,1.00959551,3273.2,3273.1,0.21396]
[1736666775432,1.22354551,3273.2,3273.1,0.21396]
[1736666775832,1.22354551,3273.2,3273.1,3.27236001]
[1736666776131,1.00959551,3273.2,3273.1,3.27236001]
[1736666776634,1.22354551,3273.2,3273.1,3.27236001]
[1736666777661,1.00959551,3273.2,3273.1,3.27236001]
[1736666781735,1.6486,3273.3,3273.2,0.21395]
[1736666781936,1.6486,3273.3,3273.2,0.66605]
[1736666782129,1.6486,3273.3,3273.2,1.14635]
[1736666785235,1.6486,3273.3,3273.2,0.21395]
[1736666790046,1.6486,3273.3,3273.2,3.27235001]
[1736666790848,1.18,3273.3,3273.2,3.27235001]
[1736666794748,2.18959551,3273.3,3273.2,3.27235001]
[1736666799853,2.18959551,3273.3,3273.2,0.21395]
[1736666802655,1.18,3273.3,3273.2,0.21395]
[1736666802850,4.21739551,3273.7,3273.2,4.06799552]
[1736666803046,0.4652,3273.8,3273.7,0.21392]
[1736666803552,0.4652,3273.8,3273.7,3.27232001]
[1736666803950,0.9118,3273.8,3273.7,3.27232001]
[1736666804855,0.9118,3273.8,3273.7,0.21392]
[1736666805053,1.12571,3273.8,3273.6,0.21392]
[1736666805259,1.22351551,3273.7,3273.5,0.66913]
[1736666805451,1.22351551,3273.7,3273.5,0.21393]
[1736666807458,1.22351551,3273.7,3273.6,0.21393]
[1736666807459,1.00959551,3273.7,3273.6,0.21393]
[1736666817564,1.00959551,3273.7,3273.5,0.4674]
[1736666817965,1.00959551,3273.7,3273.6,0.21393]
[1736666828975,1.00959551,3273.7,3273.5,0.21393]
[1736666829172,1.22351551,3273.7,3273.5,0.21393]
[1736666829570,1.00959551,3273.7,3273.6,0.21393]
[1736666831278,2.18959551,3273.7,3273.6,0.21393]
[1736666844087,1.00959551,3273.7,3273.6,3.27233001]
[1736666848893,4.1077,3274.2,3273.6,3.27233001]
[1736666849088,1.18,3273.9,3273.8,0.21391]
[1736666852798,3.6617,3274.2,3274.0,0.2139]
[1736666853001,2.63730818,3274.3,3274.2,0.21389]
[1736666853297,2.18959551,3274.3,3274.2,0.21389]
[1736666853693,2.18959551,3274.3,3274.2,3.27229001]
[1736666862495,1.00959551,3274.3,3274.2,3.27229001]
[1736666862699,2.18959551,3274.3,3274.2,3.27229001]
[1736666870204,2.18959551,3274.3,3273.7,0.4748]
[1736666870406,1.00959551,3273.8,3273.7,0.21392]
[1736666870909,3.99119005,3274.3,3273.5,1.99129551]
[1736666871209,1.00959551,3274.1,3274.0,0.2139]
[1736666874016,1.49609551,3274.1,3274.0,0.2139]
[1736666876212,1.70998551,3274.1,3273.9,0.2139]
[1736666876415,1.70998551,3274.1,3273.8,0.21391]
[1736666876624,1.00959551,3273.9,3273.8,0.21391]
[1736666877622,1.49609551,3274.1,3273.8,3.05840001]
[1736666877818,5.39739551,3274.3,3273.8,4.06799552]
[1736666878023,2.18959551,3274.3,3274.2,0.21389]
[1736666878513,2.18959551,3274.3,3274.2,3.27229001]
[1736666883230,2.18959551,3274.3,3274.2,3.05840001]
[1736666883529,2.40347551,3274.3,3274.2,3.05840001]
[1736666884128,2.18959551,3274.3,3273.7,0.4614]
[1736666884331,0.21389,3274.2,3274.0,0.2139]
[1736666884629,1.39388,3274.3,3274.1,0.21389]
[1736666885133,0.4609,3274.2,3274.1,0.21389]
[1736666885828,1.47049551,3274.2,3274.1,0.21389]
[1736666886129,1.68438551,3274.2,3274.0,0.2139]
[1736666886330,1.47259551,3274.1,3274.0,0.2139]
[1736666886527,1.68649551,3274.1,3273.9,0.2139]
[1736666886731,1.00959551,3274.0,3273.9,0.2139]
[1736666890823,0.463,3274.1,3274.0,0.2139]
[1736666892437,2.18959551,3274.3,3273.8,0.4636]
[1736666892632,2.18959551,3274.3,3274.2,0.21389]
[1736666893030,1.00959551,3274.3,3274.2,0.21389]
[1736666893331,2.18959551,3274.3,3274.2,0.21389]
[1736666896434,0.21389,3274.2,3274.0,0.21389]
[1736666896634,1.00959551,3274.1,3274.0,0.21389]
[1736666897434,4.43129551,3274.1,3273.9,0.21391]
[1736666897639,1.97539551,3274.0,3273.9,0.21391]
[1736666900337,1.97539551,3274.0,3273.8,0.4844]
[1736666900637,1.97539551,3274.0,3273.9,0.21391]
[1736666903243,2.98499102,3274.0,3273.3,3.74267]
[1736666903436,1.00959551,3273.5,3273.4,0.21394]
[1736666903737,0.91799551,3273.5,3273.4,0.21394]
[1736666904536,0.41799551,3273.5,3273.4,0.21394]
[1736666904844,1.00959551,3273.5,3273.4,0.21394]
[1736666905040,0.59159551,3273.5,3273.4,0.21394]
[1736666905339,0.50959551,3273.7,3273.6,0.21393]
[1736666905647,0.21391,3273.9,3273.8,0.21391]
[1736666905841,1.22350551,3273.9,3273.8,0.21391]
[1736666907047,1.00959551,3273.9,3273.8,0.21391]
[1736666910849,1.00959551,3273.9,3273.4,0.4625]
[1736666911250,1.00959551,3273.9,3273.8,0.21391]
[1736666917358,1.00959551,3273.9,3273.8,3.27231001]
[1736666921260,2.18959551,3273.9,3273.8,3.27231001]
[1736666921963,1.6305,3274.1,3273.8,3.05840001]
[1736666922156,1.18,3273.9,3273.8,3.27231001]
[1736666922661,1.6305,3274.1,3273.8,3.05840001]
[1736666922861,4.3878,3274.2,3273.8,3.05840001]
[1736666923064,1.00959551,3274.1,3274.0,0.2139]
[1736666925559,4.3878,3274.2,3274.1,0.21389]
[1736666925749,5.39739551,3274.2,3274.1,0.21389]
[1736666925954,5.39739551,3274.2,3274.1,3.27229001]
[1736666928754,2.18959551,3274.2,3274.1,3.27229001]
[1736666931067,1.00959551,3274.2,3274.1,3.27229001]
[1736666932664,1.18092065,3274.3,3274.1,3.05840001]
[1736666932866,1.18092065,3274.3,3274.2,0.21389]
[1736666936659,1.39480065,3274.3,3274.2,0.21389]
[1736666937567,1.18092065,3274.3,3274.2,0.21389]
[1736666941470,0.21389,3274.2,3274.1,0.21389]
[1736666941676,4.89338551,3274.2,3274.1,0.21389]
[1736666942674,4.89338551,3274.2,3274.0,0.2139]
[1736666942975,1.49749551,3274.1,3273.9,0.466]
[1736666943175,1.49749551,3274.1,3274.0,0.2139]
[1736666944273,1.49749551,3274.1,3273.9,0.466]
[1736666944574,0.2139,3274.0,3273.9,0.466]
[1736666944772,1.22349551,3274.0,3273.9,0.466]
[1736666945079,0.2139,3274.0,3273.8,0.4797]
[1736666945272,1.68490551,3273.9,3273.8,0.4797]
[1736666945573,0.21391,3273.8,3273.0,4.20021049]
[1736666945770,0.21391,3273.8,3273.6,0.21393]
[1736666945771,3.2078,3273.7,3273.6,0.21393]
[1736666946075,3.42173,3273.7,3273.5,0.21393]
[1736666946272,1.6615,3273.6,3273.3,5.3767247]
[1736666946465,1.6615,3273.6,3273.4,0.21394]
[1736666946766,1.46079551,3273.5,3273.4,0.21394]
[1736666947767,1.46079551,3273.5,3273.3,5.3767247]
[1736666947768,1.46079551,3273.5,3273.3,5.5906647]
[1736666947964,1.46079551,3273.5,3273.3,5.3767247]
[1736666948170,1.46079551,3273.5,3273.4,0.21394]
[1736666949673,1.92569551,3273.5,3273.4,0.21394]
[1736666949870,1.92569551,3273.5,3273.3,4.9194247]
[1736666950077,2.13963551,3273.5,3273.3,5.1333747]
[1736666950479,2.13963551,3273.5,3273.3,4.9194247]
[1736666951080,2.13963551,3273.5,3273.3,5.1333647]
[1736666953083,2.13963551,3273.5,3273.3,0.21394]
[1736666953877,12.00630974,3273.4,3273.3,0.21394]
[1736666956487,12.22024974,3273.4,3273.3,0.21394]
[1736666959874,12.00630974,3273.4,3273.3,0.21394]
[1736666963994,12.22024974,3273.4,3273.3,0.21394]
[1736666964300,12.00630974,3273.4,3273.3,0.21394]
[1736666965500,12.22024974,3273.4,3273.3,0.21394]
[1736666965799,12.00630974,3273.4,3273.1,0.4635]
[1736666965999,12.46160974,3273.4,3273.3,0.21395]
[1736666969401,13.01590525,3273.4,3273.3,0.21395]
[1736666970301,13.01590525,3273.4,3273.3,3.27235001]
[1736666972901,13.22984525,3273.4,3273.2,0.21395]
[1736666973092,13.22984525,3273.4,3273.2,3.27235001]
[1736666974707,0.21395,3273.3,3273.1,0.67746]
[1736666974906,1.49669551,3273.2,3273.1,0.67746]
[1736666977105,1.49669551,3273.2,3273.1,0.4635]
[1736666977301,1.71064551,3273.2,3273.1,0.4635]
[1736666978003,1.49669551,3273.2,3273.1,0.67746]
[1736666978704,1.49669551,3273.2,3273.1,0.4635]
[1736666979201,2.50629102,3273.2,3272.8,3.2078]
[1736666979400,1.00959551,3272.9,3272.8,3.2078]
[1736666979706,1.00959551,3272.9,3272.8,3.42178]
[1736666979707,2.18959551,3272.9,3272.8,3.42178]
[1736666980509,2.40356551,3272.9,3272.8,3.2078]
[1736666980706,2.40356551,3272.9,3272.8,3.42178]
[1736666980907,2.40356551,3272.9,3272.8,3.2078]
[1736666981410,2.40356551,3272.9,3272.6,0.21399]
[1736666981912,0.4605,3272.8,3272.6,0.21399]
[1736666982304,1.00959551,3272.7,3272.6,0.21399]
[1736666982506,1.00959551,3272.7,3272.5,0.9146]
[1736666982912,1.00959551,3272.7,3272.6,0.21399]
[1736666984614,1.00959551,3272.7,3272.5,0.9146]
[1736666984814,1.22358551,3272.7,3272.5,1.1286]
[1736666987408,1.00959551,3272.7,3272.6,3.27239001]
[1736666987610,15.66109881,3272.8,3272.7,0.21399]
[1736666987911,14.19590525,3272.8,3272.7,0.21399]
[1736666988611,13.01590525,3272.8,3272.7,0.21399]
[1736666988916,14.19590525,3272.8,3272.7,0.21399]
[1736667005734,12.00630974,3272.8,3272.7,0.21399]
[1736667006626,11.50630974,3272.8,3272.7,0.21399]
[1736667006824,11.00630974,3272.8,3272.7,0.21399]
[1736667007126,1.00959551,3273.1,3273.0,0.21397]
[1736667007619,1.00959551,3273.1,3273.0,3.27237001]
[1736667009525,1.00959551,3273.3,3273.2,0.21395]
[1736667009720,14.80598356,3273.7,3273.3,0.21395]
[1736667009721,1.18,3273.4,3273.3,0.21395]
[1736667010931,1.39394,3273.4,3273.2,0.21395]
[1736667011135,1.00959551,3273.3,3273.1,1.4011]
[1736667011324,0.21395,3273.2,3273.1,1.4011]
[1736667011929,1.22354551,3273.3,3273.1,1.4011]
[1736667013129,1.22354551,3273.3,3273.1,1.61506]
[1736667014422,1.00959551,3273.3,3273.2,0.21395]
[1736667015630,12.00622935,3273.4,3273.3,0.21395]
[1736667015930,12.00622935,3273.4,3273.3,3.27235001]
[1736667029845,1.00959551,3273.7,3273.3,3.05840001]
[1736667030035,1.00959551,3273.7,3273.6,0.21393]
[1736667030843,12.00622935,3274.0,3273.6,4.21739551]
[1736667031043,12.00622935,3274.0,3273.9,1.22350551]
[1736667031543,11.50622935,3274.0,3273.9,4.28190552]
[1736667031946,0.4954,3274.3,3274.2,0.21389]
[1736667033246,1.00959551,3274.5,3274.1,1.00959551]
[1736667033445,0.4946,3274.6,3274.5,0.21387]
[1736667033941,0.4946,3274.6,3274.5,3.27227001]
[1736667033942,0.9458,3274.6,3274.5,3.27227001]
[1736667034445,1.95539551,3274.6,3274.5,3.27227001]
[1736667034644,1.95539551,3274.6,3274.5,3.05840001]
[1736667034846,0.21387,3274.5,3274.2,0.21388]
[1736667035037,1.00959551,3274.3,3274.2,0.21388]
[1736667037442,3.2078,3274.4,3274.0,0.4797]
[1736667037645,0.4515,3274.2,3274.1,0.21389]
[1736667040746,3.2078,3274.4,3274.3,0.21388]